bitfinex/quotes_ETHUSD_20240819
["timestamp","ask_amount","ask_price","bid_price","bid_amount"]
[1724037425349,22.1048498,2643.3,2642.9,1.61]
[1724037425586,0.0677745,2643.0,2642.9,1.61]
[1724037425886,0.0677745,2643.0,2642.7,1.61]
[1724037425887,0.06575543,2643.0,2642.7,1.61]
[1724037426931,4.98162,2643.2,2642.7,1.61]
[1724037427236,0.06572515,2642.9,2642.7,1.61]
[1724037427387,2.86769678,2643.1,2642.7,1.61]
[1724037427934,0.06575543,2643.0,2642.7,1.61]
[1724037429443,0.06575543,2643.0,2642.7,4.25879]
[1724037429579,0.06575543,2643.0,2642.9,4.2586]
[1724037429921,0.06572457,2643.0,2642.9,4.2586]
[1724037430290,19.71,2643.2,2642.9,4.2586]
[1724037430490,19.71,2643.2,2643.0,2.64849]
[1724037430716,19.71,2643.2,2643.1,1.61]
[1724037430930,19.71,2643.5,2643.1,1.61]
[1724037431109,20.63236725,2643.5,2643.1,1.61]
[1724037433415,0.06597135,2643.4,2643.1,1.61]
[1724037436624,19.71,2643.3,2643.1,4.2584]
[1724037436795,19.71,2643.3,2643.2,9.946184]
[1724037436999,19.71,2643.3,2643.2,9.2555]
[1724037437921,19.71,2643.7,2643.5,2.3489]
[1724037438161,19.71,2643.7,2643.6,1.61]
[1724037439332,19.71,2643.7,2643.6,4.918591]
[1724037439641,19.71,2643.7,2643.6,4.2579]
[1724037440444,19.77599883,2643.7,2643.6,4.2579]
[1724037442219,19.77599883,2643.7,2643.6,6.9058]
[1724037442433,0.06599883,2643.7,2643.6,9.8338]
[1724037442743,7.37155549,2644.9,2643.6,9.8338]
[1724037442744,1.590498,2644.7,2644.3,2.3945]
[1724037442944,1.590498,2644.8,2644.5,1.61]
[1724037443265,0.0665994,2644.6,2644.5,1.61]
[1724037443767,0.06395892,2644.6,2644.5,1.61]
[1724037444146,4.236998,2645.0,2644.5,1.61]
[1724037444477,3.10349192,2645.0,2644.7,1.61]
[1724037444810,0.06407386,2644.9,2644.7,1.61]
[1724037445920,0.06407386,2644.9,2644.3,2.3945]
[1724037445921,5.17045386,2644.9,2644.3,2.3945]
[1724037446125,7.72285244,2644.9,2644.4,1.61]
[1724037446773,7.72285244,2644.9,2644.3,2.3945]
[1724037446975,7.72285244,2644.9,2644.1,1.61]
[1724037446976,2.64696,2644.6,2644.1,1.61]
[1724037447774,0.06249792,2644.5,2644.3,1.61]
[1724037448082,2.6469,2644.7,2644.3,1.61]
[1724037448083,0.84953577,2644.7,2644.3,1.61]
[1724037448280,0.06412984,2644.6,2644.3,1.61]
[1724037448420,19.77412984,2644.6,2644.3,2.3945]
[1724037448617,19.77412984,2644.6,2644.3,5.04168]
[1724037450061,19.77412984,2644.6,2644.4,2.64707]
[1724037450256,19.77412984,2644.6,2644.3,5.04168]
[1724037450462,19.77412984,2644.6,2644.3,7.68881]
[1724037450760,19.77412984,2644.6,2644.4,2.64709]
[1724037451164,0.06412984,2644.6,2644.5,2.647]
[1724037451596,19.71,2644.9,2644.5,2.647]
[1724037451876,22.67464,2644.9,2644.5,2.647]
[1724037452091,0.06393192,2644.8,2644.5,2.647]
[1724037452236,0.06393192,2644.8,2644.3,7.68876]
[1724037452443,0.06393192,2644.8,2644.4,2.6471]
[1724037453574,2.3276,2644.7,2644.1,2.64732]
[1724037453784,2.64696,2644.6,2643.9,2.64755]
[1724037454063,0.497456,2644.5,2643.9,2.64755]
[1724037454584,19.77255824,2644.4,2643.9,2.64755]
[1724037454926,22.0376,2644.3,2643.7,2.3115]
[1724037455128,0.06255824,2644.4,2643.9,2.64758]
[1724037455129,19.71,2644.2,2643.9,2.64758]
[1724037455375,19.77381305,2644.2,2643.9,2.64758]
[1724037455542,19.77381305,2644.2,2643.9,2.64754]
[1724037455931,19.77381305,2644.2,2644.0,2.64748]
[1724037456545,19.77381305,2644.2,2643.7,2.3115]
[1724037456546,19.77381305,2644.2,2644.1,2.6474]
[1724037456765,0.06381305,2644.2,2644.1,7.6063]
[1724037456954,0.06381305,2644.2,2644.1,8.1563]
[1724037457257,19.71,2644.6,2644.3,2.64715]
[1724037457447,19.71,2644.8,2644.3,5.29428]
[1724037457646,19.71,2644.8,2644.4,2.64708]
[1724037458587,19.71,2644.7,2644.6,2.64689]
[1724037458940,19.77398729,2644.7,2644.6,2.64689]
[1724037459942,19.77398729,2644.7,2644.5,2.3115]
[1724037460588,21.75138602,2644.7,2644.2,2.64724]
[1724037462400,21.75138602,2644.7,2644.0,4.99685]
[1724037462401,24.39818602,2644.7,2644.0,4.99684]
[1724037462683,24.39818602,2644.7,2644.2,2.64729]
[1724037462684,21.75138602,2644.7,2644.2,2.64729]
[1724037463503,19.71,2644.6,2644.2,2.64729]
[1724037463668,20.10976342,2644.6,2644.2,2.64729]
[1724037463885,0.06386666,2644.5,2644.2,2.64729]
[1724037464051,0.06386666,2644.5,2644.1,2.64738]
[1724037464999,0.06386666,2644.5,2644.2,2.64728]
[1724037467399,0.06386666,2644.5,2644.2,5.29451]
[1724037468110,0.06386666,2644.5,2644.2,2.64723]
[1724037469282,19.71,2644.4,2644.0,4.99684]
[1724037469512,19.71,2644.4,2643.8,2.64763]
[1724037469513,2.04111448,2644.3,2643.8,2.64763]
[1724037469808,2.04111448,2644.3,2643.9,2.64754]
[1724037469809,0.06372781,2644.3,2643.9,2.64754]
[1724037470008,0.06372781,2644.3,2643.7,2.4924]
[1724037470009,19.71,2644.2,2643.7,2.4924]
[1724037470176,1.97737278,2644.1,2643.6,2.64783]
[1724037470370,2.03959626,2644.1,2643.6,2.64783]
[1724037471778,4.51709626,2644.1,2643.6,2.64783]
[1724037472113,2.42270963,2644.0,2643.6,2.64783]
[1724037472286,4.51709626,2644.1,2643.6,2.64783]
[1724037474824,0.06222348,2644.1,2643.7,2.64779]
[1724037474976,0.06222348,2644.1,2643.9,2.64754]
[1724037475542,19.71,2644.0,2643.9,2.64754]
[1724037476005,19.77222795,2644.0,2643.9,2.64754]
[1724037477589,19.77222795,2644.0,2643.9,5.09334]
[1724037477787,19.77222795,2644.0,2643.9,8.250274]
[1724037481300,0.06222795,2644.0,2643.9,7.74094]
[1724037481542,19.71,2644.4,2643.9,5.09334]
[1724037481724,0.06217277,2644.0,2643.9,5.09334]
[1724037481897,19.71,2644.4,2643.9,5.09334]
[1724037482099,0.06241256,2644.3,2643.9,5.09334]
[1724037482762,0.06241256,2644.3,2644.0,2.64749]
[1724037483931,0.06241256,2644.3,2643.9,5.09333]
[1724037484334,0.06241256,2644.3,2643.9,2.64753]
[1724037484541,2.30435382,2644.3,2643.9,2.64753]
[1724037486238,0.06241256,2644.3,2643.9,5.29505]
[1724037486397,0.06241256,2644.3,2643.9,2.64752]
[1724037486603,0.06241256,2644.3,2644.1,5.03519]
[1724037487021,0.06241256,2644.3,2644.0,2.64749]
[1724037487248,19.77241256,2644.3,2644.0,2.64749]
[1724037488159,21.74965382,2644.3,2643.8,5.03542]
[1724037488470,24.15055382,2644.3,2643.8,5.03542]
[1724037489962,26.79775382,2644.3,2643.7,2.64775]
[1724037490148,2.67976538,2644.2,2643.7,2.64775]
[1724037490350,2.73993405,2644.2,2643.7,2.64775]
[1724037491515,2.73993405,2644.2,2643.5,2.64795]
[1724037491516,2.64741,2644.1,2643.5,2.64795]
[1724037491720,2.70527959,2644.1,2643.5,2.64794]
[1724037492023,2.80746409,2644.1,2643.6,2.64787]
[1724037492232,2.80746409,2644.1,2643.5,5.29587]
[1724037492431,2.80746409,2644.1,2643.6,2.64787]
[1724037493147,19.71,2644.0,2643.6,2.64787]
[1724037493348,19.76795679,2644.0,2643.6,2.64787]
[1724037493546,22.41547679,2644.0,2643.4,2.2832]
[1724037493764,2.409,2643.9,2643.4,2.2832]
[1724037493929,2.46694998,2643.9,2643.4,2.2832]
[1724037494664,2.46694998,2643.9,2643.4,4.93129]
[1724037494963,2.46694998,2643.9,2643.3,2.64813]
[1724037494964,5.20104559,2643.9,2643.3,2.64813]
[1724037495147,5.20104559,2643.9,2643.4,2.64809]
[1724037495326,5.20104559,2643.9,2643.4,2.64658334]
[1724037495658,2.75585656,2643.8,2643.4,2.64658334]
[1724037495827,2.46694998,2643.9,2643.4,2.64658334]
[1724037496023,0.05779974,2643.7,2643.4,5.29462334]
[1724037496228,0.05786656,2643.8,2643.4,5.29462334]
[1724037496532,2.409,2643.9,2643.4,5.29462334]
[1724037496853,0.05779706,2643.7,2643.4,2.64658334]
[1724037497057,0.05786656,2643.8,2643.4,2.64658334]
[1724037497371,19.71,2643.7,2643.4,2.64658334]
[1724037497527,19.76779706,2643.7,2643.4,2.64658334]
[1724037497721,19.76779706,2643.7,2643.2,2.64825]
[1724037498174,19.71,2643.6,2643.2,2.64825]
[1724037498522,19.71,2643.6,2643.0,2.64846]
[1724037498523,2.53693715,2643.5,2643.0,2.64843]
[1724037498782,4.51371686,2643.5,2643.0,2.64843]
[1724037498955,4.51371686,2643.5,2642.8,2.64866]
[1724037499141,4.51371686,2643.5,2642.7,2.64874]
[1724037499142,22.35817,2643.4,2642.7,2.64874]
[1724037499341,2.64822,2643.3,2642.6,5.29771]
[1724037499521,22.1893,2643.2,2642.6,5.29768]
[1724037499849,24.99497066,2643.2,2642.7,2.6488]
[1724037502976,27.64328066,2643.2,2642.6,2.64884]
[1724037503273,3.02915007,2643.1,2642.6,2.64884]
[1724037503799,2.3176,2642.9,2642.4,2.64906]
[1724037504088,2.3176,2642.9,2642.2,5.06512]
[1724037504323,0.05711116,2642.8,2642.3,2.64911]
[1724037505064,19.71,2642.7,2642.3,2.64911]
[1724037505391,0.05694069,2642.6,2642.3,2.64911]
[1724037506064,0.05694069,2642.6,2642.4,2.64909]
[1724037509019,0.03935701,2642.6,2642.4,2.64909]
[1724037509154,0.03935701,2642.6,2641.7,3.0]
[1724037509155,0.05673795,2642.6,2642.0,2.64943]
[1724037509372,0.05673795,2642.6,2642.1,2.6494]
[1724037511393,0.05673795,2642.6,2641.9,2.6496]
[1724037511394,22.35901,2642.5,2641.9,2.6496]
[1724037511576,22.4153891,2642.5,2641.9,2.6496]
[1724037511806,2.4257,2642.4,2641.7,5.1452]
[1724037511985,19.71,2642.3,2641.7,8.69545]
[1724037512172,19.76622364,2642.3,2641.7,8.69545]
[1724037513011,19.76622364,2642.3,2641.8,2.64968]
[1724037515120,19.76622364,2642.3,2641.7,8.69538]
[1724037515919,19.76622364,2642.3,2641.8,2.64969]
[1724037516231,19.71,2642.2,2641.8,2.64969]
[1724037516437,19.76612269,2642.2,2641.8,2.64969]
[1724037518695,2.3222,2642.1,2641.5,2.64992]
[1724037519097,0.055871,2642.0,2641.5,2.64992]
[1724037520048,19.71,2641.9,2641.3,4.99063]
[1724037520332,19.71,2641.9,2641.4,2.65003]
[1724037520540,0.05552257,2641.8,2641.5,2.64999]
[1724037520749,19.71,2641.7,2641.5,3.4639588]
[1724037521258,19.76338378,2641.7,2641.5,3.4639588]
[1724037522013,19.76338378,2641.7,2641.5,0.8139688]
[1724037522622,19.76338378,2641.7,2641.5,3.4639688]
[1724037524021,19.76338378,2641.7,2641.6,0.34639688]
[1724037524825,19.76338378,2641.7,2641.6,2.99629688]
[1724037526947,19.76338378,2641.7,2641.6,11.81509688]
[1724037527247,19.76338378,2641.7,2641.6,0.34639688]
[1724037527451,19.76338378,2641.7,2641.3,3.149208]
[1724037527611,19.76338378,2641.7,2641.5,2.64998]
[1724037528937,19.76338378,2641.7,2641.6,2.6499]
[1724037529142,19.76338378,2641.7,2641.6,5.22039]
[1724037530920,19.76338378,2641.7,2641.6,7.87029]
[1724037531259,19.76338378,2641.7,2641.6,5.22039]
[1724037531548,19.76338378,2641.7,2641.6,7.87029]
[1724037533341,19.71,2641.7,2641.6,7.87029]
[1724037533522,19.75532946,2641.7,2641.6,5.22039]
[1724037533730,19.75532946,2641.7,2641.6,7.87029]
[1724037534340,19.75532946,2641.7,2641.6,5.22039]
[1724037534659,19.75532946,2641.7,2641.6,7.87029]
[1724037535931,0.04532946,2641.7,2641.6,11.73029]
[1724037536123,0.04532946,2641.7,2641.6,14.93019]
[1724037536339,9.5418,2642.7,2642.3,2.64919]
[1724037536535,0.04528644,2642.6,2642.1,5.04012]
[1724037536936,0.04528644,2642.6,2642.1,7.68946]
[1724037537229,0.04528644,2642.6,2642.1,7.68945]
[1724037537430,0.04528644,2642.6,2642.2,2.6493]
[1724037537844,0.04528644,2642.6,2642.1,2.64932]
[1724037538169,0.04528644,2642.6,2642.0,2.4337]
[1724037538170,3.18884208,2642.6,2642.0,2.4337]
[1724037538369,3.18884208,2642.6,2641.9,2.64954]
[1724037538668,2.64903,2642.5,2641.9,2.64954]
[1724037538830,3.50325877,2642.5,2641.9,2.64954]
[1724037539370,4.90286,2642.4,2641.7,2.64973]
[1724037539552,0.04516279,2642.3,2641.7,5.29946]
[1724037539754,0.04516279,2642.3,2641.7,5.29947]
[1724037540053,2.69436279,2642.3,2641.7,2.64973]
[1724037540433,2.6493,2642.2,2641.5,2.64993]
[1724037540770,2.4996,2642.1,2641.5,2.64993]
[1724037541067,0.0448914,2642.0,2641.5,2.64993]
[1724037541233,0.0448914,2642.0,2641.6,2.64989]
[1724037541636,0.0448914,2642.0,2641.7,2.64979]
[1724037542032,0.0448914,2642.0,2641.6,0.264993]
[1724037542240,0.0448914,2642.0,2641.5,5.29988]
[1724037542241,0.0448914,2642.0,2641.5,2.64993]
[1724037543081,0.0448914,2642.0,2641.6,2.64989]
[1724037543489,0.0448914,2642.0,2641.5,2.64993]
[1724037543781,2.4996,2641.8,2641.3,2.65013]
[1724037543993,19.71,2641.7,2641.1,5.13753]
[1724037544152,19.75475498,2641.7,2641.1,6.337283]
[1724037544356,19.75475498,2641.7,2641.2,2.65029]
[1724037544881,19.71,2641.6,2641.2,2.65029]
[1724037545084,19.71,2641.6,2641.1,6.337283]
[1724037545085,19.71,2641.6,2641.3,2.65019]
[1724037545381,0.04473463,2641.5,2641.3,2.65019]
[1724037545768,0.04473463,2641.5,2641.1,2.65033]
[1724037545942,2.69475463,2641.5,2640.9,2.65059]
[1724037546280,2.54423833,2641.4,2640.9,2.65059]
[1724037546776,2.54423833,2641.4,2640.9,2.65053]
[1724037547033,2.54423833,2641.4,2641.0,2.6505]
[1724037547400,2.54423833,2641.4,2640.9,2.65053]
[1724037548183,2.54423833,2641.4,2640.9,2.65052]
[1724037548383,0.04463833,2641.4,2641.1,5.30064]
[1724037548547,22.0261,2641.7,2641.1,2.65032]
[1724037548742,0.04243787,2641.6,2641.1,2.65032]
[1724037549545,19.71,2641.5,2641.1,2.65032]
[1724037549745,0.04239673,2641.4,2641.1,2.65032]
[1724037551271,0.04239673,2641.4,2641.1,3.8366042]
[1724037552081,0.04239673,2641.4,2641.3,2.65021]
[1724037556085,19.71,2641.6,2641.3,2.65021]
[1724037556286,0.03775091,2641.4,2641.3,2.65021]
[1724037556493,19.71,2641.6,2641.4,2.6501]
[1724037557772,19.71,2641.6,2641.5,2.65]
[1724037558521,19.71,2641.6,2641.3,2.65014]
[1724037558703,19.71,2641.6,2641.3,3.30939278]
[1724037559006,19.71,2641.6,2641.5,2.65]
[1724037559418,19.71,2641.6,2641.5,4.9403]
[1724037560816,19.71,2641.6,2641.5,7.5903]
[1724037561026,19.71,2641.6,2641.5,8.41525528]
[1724037561373,19.71,2641.6,2641.5,5.76525528]
[1724037561574,19.71,2641.9,2641.5,8.41518528]
[1724037561812,19.71,2641.9,2641.6,2.64988]
[1724037562784,0.03784369,2641.8,2641.6,2.64988]
[1724037563007,0.03784369,2641.8,2641.6,3.49138653]
[1724037563371,0.03784369,2641.8,2641.7,2.6498]
[1724037564574,0.03784369,2641.8,2641.7,5.2996]
[1724037564915,19.71,2642.1,2642.0,2.6495]
[1724037565210,15.990298,2642.5,2642.0,2.6495]
[1724037565211,19.71,2642.2,2642.0,2.6495]
[1724037566500,0.03817796,2642.1,2642.0,2.6495]
[1724037568389,0.03817796,2642.1,2641.8,5.29932]
[1724037568609,0.03817796,2642.1,2641.9,2.64959]
[1724037569020,2.42287796,2642.1,2641.7,2.64979]
[1724037569341,7.28565576,2642.1,2641.4,5.03155]
[1724037569585,7.28565576,2642.1,2641.4,2.65005]
[1724037569586,19.71,2642.0,2641.4,2.65005]
[1724037569903,0.03814863,2641.9,2641.4,2.65005]
[1724037570933,2.47276227,2641.9,2641.4,2.65005]
[1724037571244,0.03814863,2641.9,2641.6,2.64984]
[1724037571453,0.03814863,2641.9,2641.6,4.93844]
[1724037571595,0.03814863,2641.9,2641.7,2.64974]
[1724037571921,0.03814863,2641.9,2641.4,4.92672]
[1724037572319,0.03814863,2641.9,2641.5,2.64995]
[1724037573410,19.71,2641.8,2641.5,2.64995]
[1724037573653,19.74808237,2641.8,2641.5,2.64995]
[1724037574514,19.74808237,2641.8,2641.6,2.6499]
[1724037574914,19.74808237,2641.8,2641.6,2.64984]
[1724037575149,19.74808237,2641.8,2641.4,4.92676]
[1724037576743,19.74808237,2641.8,2641.4,7.57679]
[1724037576912,19.74808237,2641.8,2641.4,4.92673]
[1724037578820,19.74808237,2641.8,2641.4,2.65003]
[1724037579216,19.74808237,2641.8,2641.6,2.4898]
[1724037579523,0.03808237,2641.8,2641.7,2.6498]
[1724037579950,19.71,2642.0,2641.7,2.6498]
[1724037580116,0.03795791,2641.8,2641.7,2.6498]
[1724037580472,19.71,2642.0,2641.8,2.64969]
[1724037580617,19.71,2642.0,2641.8,2.64964]
[1724037581441,19.71,2642.0,2641.7,0.778947]
[1724037581647,19.71,2642.0,2641.7,3.428747]
[1724037582581,19.71,2642.0,2641.8,4.26167]
[1724037582730,19.71,2642.0,2641.8,5.5446737]
[1724037583460,0.03798039,2641.9,2641.8,5.5446737]
[1724037585347,19.74798039,2641.9,2641.8,5.5446737]
[1724037593475,19.74798039,2641.9,2641.8,10.6178737]
[1724037593700,19.74798039,2641.9,2641.8,13.8511052]
[1724037593975,19.74798039,2641.9,2641.8,15.8258846]
[1724037594290,19.74798039,2641.9,2641.8,13.17607846]
[1724037594811,19.74798039,2641.9,2641.8,11.56407846]
[1724037595134,19.74798039,2641.9,2641.8,9.88487]
[1724037595294,19.74798039,2641.9,2641.8,11.38528991]
[1724037596927,19.74798039,2641.9,2641.8,12.70184041]
[1724037597483,19.74798039,2641.9,2641.8,14.67663399]
[1724037598415,19.74798039,2641.9,2641.8,12.70184041]
[1724037598804,19.74798039,2641.9,2641.8,18.11636088]
[1724037599047,19.74798039,2641.9,2641.8,18.5176146]
[1724037599332,0.03798039,2641.9,2641.8,18.1201036]
[1724037599711,27.0,2642.9,2642.4,2.64905]
[1724037599913,19.74607996,2642.8,2642.5,1.612]
[1724037600879,19.74607996,2642.8,2642.5,4.26099]
[1724037601180,0.03607996,2642.8,2642.6,2.64889]
[1724037601357,0.03607996,2642.8,2642.7,1.612]
[1724037601668,0.03474946,2642.8,2642.7,1.612]
[1724037601962,2.4996,2643.1,2642.7,1.612]
[1724037602182,0.03478474,2642.8,2642.7,1.612]
[1724037602320,5.34278631,2643.1,2642.7,1.612]
[1724037602522,0.0349328,2643.0,2642.7,1.612]
[1724037603564,0.0349328,2643.0,2642.7,4.26079]
[1724037603920,0.0349328,2643.0,2642.5,5.09907]
[1724037604256,4.90789608,2643.0,2642.5,1.612]
[1724037604453,4.90789608,2643.0,2642.3,1.612]
[1724037604454,2.64881,2642.7,2642.3,1.612]
[1724037604633,2.4057,2642.6,2642.3,1.612]
[1724037605042,2.44036462,2642.6,2642.3,1.612]
[1724037605920,5.08935462,2642.6,2642.1,1.612]
[1724037606124,3.44930456,2642.5,2642.1,1.612]
[1724037606386,3.48393054,2642.5,2642.1,1.612]
[1724037607152,2.2774,2642.4,2642.1,1.612]
[1724037607379,2.64922,2642.3,2641.8,1.612]
[1724037607559,19.71,2642.2,2641.8,1.612]
[1724037608087,0.03434328,2642.1,2641.8,1.612]
[1724037608593,0.03434328,2642.1,2641.7,2.64974]
[1724037609966,0.03434328,2642.1,2641.8,2.64969]
[1724037610171,0.03434328,2642.1,2641.8,5.29933]
[1724037610371,0.03434328,2642.1,2641.8,2.64964]
[1724037612235,19.71,2642.0,2641.8,2.64964]
[1724037612708,0.0341706,2641.9,2641.8,2.64964]
[1724037613247,2.3785706,2641.9,2641.6,2.64985]
[1724037614582,0.0341706,2641.9,2641.7,2.6498]
[1724037615934,0.0341706,2641.9,2641.8,2.6497]
[1724037618156,19.7441706,2641.9,2641.8,2.6497]
[1724037621113,19.7441706,2641.9,2641.8,5.2994]
[1724037621316,19.7441706,2641.9,2641.8,6.0564]
[1724037622125,19.7441706,2641.9,2641.8,3.4067]
[1724037622358,19.7441706,2641.9,2641.8,2.6497]
[1724037622946,19.7441706,2641.9,2641.6,2.64986]
[1724037623975,19.71,2641.8,2641.6,2.64986]
[1724037624335,0.03421748,2641.7,2641.6,2.64986]
[1724037624688,19.71,2641.7,2641.6,2.64986]
[1724037624876,19.74421748,2641.7,2641.6,2.64986]
[1724037626125,19.74421748,2641.7,2641.4,2.65004]
[1724037626233,19.74421748,2641.7,2641.4,5.30008]
[1724037626434,19.74421748,2641.7,2641.4,5.30007]
[1724037626671,19.74421748,2641.7,2641.5,2.65]
[1724037629963,19.71,2641.6,2641.5,2.65]
[1724037630381,19.7441621,2641.6,2641.5,2.65]
[1724037630586,19.7441621,2641.6,2641.5,4.262]
[1724037631086,19.7441621,2641.6,2641.5,9.863303]
[1724037632045,19.79184013,2641.6,2641.5,9.863303]
[1724037633182,19.79184013,2641.6,2641.5,6.912]
[1724037633377,19.79184013,2641.6,2641.5,9.2488]
[1724037633777,19.71,2641.6,2641.5,9.2488]
[1724037634173,19.79187968,2641.6,2641.5,9.2488]
[1724037635879,0.08187968,2641.6,2641.5,9.2488]
[1724037636178,19.71,2642.0,2641.7,2.6498]
[1724037636338,19.71,2642.0,2641.7,4.2618]
[1724037638698,19.71,2642.0,2641.7,4.26175]
[1724037641830,19.71,2642.2,2641.7,4.26175]
[1724037642107,21.1051018,2642.2,2641.7,4.26175]
[1724037642310,2.3304,2642.1,2641.7,4.26175]
[1724037643029,0.08205634,2642.0,2641.7,4.26175]
[1724037643626,0.08205634,2642.0,2641.7,6.91149]
[1724037643827,0.08205634,2642.0,2641.7,4.26174]
[1724037644123,19.71,2642.2,2642.0,2.64944]
[1724037644626,19.71,2642.2,2641.7,2.64979]
[1724037644627,2.3003,2642.1,2641.7,2.64979]
[1724037644833,2.20103,2642.0,2641.7,2.64979]
[1724037645187,2.3003,2642.1,2641.7,2.64979]
[1724037646541,0.08196684,2642.0,2641.7,2.64979]
[1724037647788,19.71,2641.9,2641.7,2.64979]
[1724037648137,0.08183124,2641.8,2641.7,2.64979]
[1724037651319,0.08183124,2641.8,2641.6,1.612]
[1724037651516,0.08183124,2641.8,2641.6,4.26188]
[1724037653735,19.71,2641.7,2641.6,4.26188]
[1724037654020,19.79175842,2641.7,2641.6,4.26188]
[1724037663376,19.79175842,2641.7,2641.6,2.64988]
[1724037664366,2.4166,2641.6,2641.1,3.44431763]
[1724037664566,0.08152997,2641.5,2641.1,1.97546205]
[1724037664800,2.5002834,2641.5,2641.0,7.00465205]
[1724037664975,19.71,2641.4,2641.0,4.35416205]
[1724037665178,0.08157619,2641.3,2641.0,2.3787]
[1724037665377,0.08157619,2641.3,2641.0,5.02918]
[1724037666181,0.08157619,2641.3,2641.0,2.3787]
[1724037666409,19.71,2641.2,2640.8,4.93286]
[1724037666587,0.08147116,2641.1,2640.6,1.97576654]
[1724037666885,6.44220081,2641.1,2640.5,4.26296]
[1724037668203,19.71,2641.0,2640.5,4.26296]
[1724037668366,19.71,2641.0,2640.5,6.91388]
[1724037668564,0.08128461,2640.9,2640.5,4.26292]
[1724037668791,19.71,2640.8,2640.5,1.612]
[1724037669304,0.08114892,2640.7,2640.5,1.612]
[1724037669512,19.71,2640.8,2640.6,2.65091]
[1724037669719,19.71,2640.8,2640.7,6.63581]
[1724037670044,4.63427986,2641.6,2641.0,5.30089]
[1724037670045,19.71,2641.3,2641.0,5.30089]
[1724037670168,19.71,2641.3,2641.1,4.26241]
[1724037670374,19.71,2641.4,2641.1,6.63541]
[1724037670609,19.71,2641.4,2641.2,2.6503]
[1724037671416,19.71,2641.4,2641.1,6.63532]
[1724037671781,0.07862169,2641.3,2641.1,6.63532]
[1724037672376,0.07862169,2641.3,2641.1,5.02332]
[1724037672611,0.07862169,2641.3,2641.1,3.985]
[1724037672991,0.07862169,2641.3,2641.1,6.63539]
[1724037673969,0.07862169,2641.3,2641.1,3.985]
[1724037674525,0.07862169,2641.3,2641.1,1.612]
[1724037674672,19.71,2641.2,2641.0,2.65043]
[1724037675142,0.07854345,2641.1,2641.0,2.65043]
[1724037676723,0.07854345,2641.1,2640.9,2.65061]
[1724037676951,0.07854345,2641.1,2641.0,2.65051]
[1724037677337,0.07854345,2641.1,2641.0,4.26251]
[1724037677929,0.07854345,2641.1,2641.0,9.21742]
[1724037679228,0.07854345,2641.1,2641.0,9.76742]
[1724037679430,0.07854345,2641.1,2641.0,9.21742]
[1724037679633,0.07854345,2641.1,2641.0,10.2048326]
[1724037680384,0.07854345,2641.1,2641.0,10.7548326]
[1724037680738,19.71,2641.5,2641.4,2.6501]
[1724037680934,19.78844883,2641.5,2641.4,2.6501]
[1724037684762,19.78844883,2641.5,2641.4,9.88604]
[1724037684763,0.07844883,2641.5,2641.4,9.88604]
[1724037685074,19.71,2641.9,2641.6,2.64982]
[1724037685260,19.71,2641.8,2641.6,4.26182]
[1724037686801,19.71,2641.8,2641.7,2.6498]
[1724037686972,19.71,2641.8,2641.7,7.7336]
[1724037687508,19.43,2642.3,2642.2,2.6493]
[1724037687509,19.71,2642.3,2642.2,2.6493]
[1724037687647,19.71,2642.5,2642.4,2.6491]
[1724037687849,19.71,2642.5,2642.4,4.2611]
[1724037688786,19.78902421,2642.5,2642.4,4.2611]
[1724037688994,0.07902421,2642.5,2642.4,6.9102]
[1724037689200,0.07902421,2642.5,2642.4,9.88732]
[1724037689357,0.07902421,2642.5,2642.4,10.43732]
[1724037689557,2.64815,2643.4,2642.8,2.64864]
[1724037689754,0.07945646,2643.3,2642.8,4.26064]
[1724037689992,0.74804126,2643.3,2642.8,4.26064]
[1724037690665,0.74804126,2643.3,2643.0,1.612]
[1724037691022,0.07945646,2643.3,2643.0,4.2605]
[1724037691153,2.64794,2643.6,2643.0,4.2605]
[1724037691154,3.0,2643.4,2643.0,4.2605]
[1724037691357,0.564794,2643.4,2643.0,4.2605]
[1724037691569,2.64794,2643.6,2643.0,4.2605]
[1724037691570,6.576228,2643.8,2643.2,1.612]
[1724037691889,2.338,2643.8,2643.3,2.64819]
[1724037692090,24.33709449,2644.0,2643.4,1.612]
[1724037692091,0.6576098,2643.7,2643.4,1.612]
[1724037692249,0.6576098,2643.7,2643.5,2.648]
[1724037692250,0.07744164,2643.7,2643.5,2.648]
[1724037692450,0.07744164,2643.7,2643.6,2.6479]
[1724037692650,2.64731,2644.2,2643.6,2.6479]
[1724037692882,0.264731,2644.1,2643.6,2.6479]
[1724037693231,0.34241098,2644.1,2643.6,2.6479]
[1724037693372,0.07767998,2644.1,2643.7,2.64779]
[1724037693707,2.64721,2644.3,2643.6,2.6479]
[1724037693927,0.0773124,2644.0,2643.6,2.6479]
[1724037694049,2.64721,2644.3,2643.6,2.6479]
[1724037694251,0.07727523,2643.9,2643.6,2.6479]
[1724037694497,2.64721,2644.3,2643.6,2.6479]
[1724037694681,0.0772354,2643.8,2643.4,5.08676]
[1724037694882,2.6475,2644.0,2643.1,5.02902]
[1724037695170,2.64772,2643.8,2643.2,0.55]
[1724037695461,0.07719822,2643.7,2643.2,0.55]
[1724037695813,0.07719822,2643.7,2643.2,3.19822]
[1724037696163,2.6475,2644.0,2643.3,2.6482]
[1724037696706,2.72491311,2643.9,2643.3,2.6482]
[1724037696904,0.53724131,2643.8,2643.3,2.6482]
[1724037697199,0.07716769,2643.7,2643.3,2.6482]
[1724037697751,0.07713051,2643.6,2643.3,2.6482]
[1724037698112,2.64761,2643.9,2643.2,0.55]
[1724037698261,2.64761,2643.9,2643.2,3.19827]
[1724037698262,0.07706278,2643.5,2643.2,3.19827]
[1724037698463,0.264761,2643.8,2643.2,3.19827]
[1724037698814,0.07699506,2643.4,2642.9,2.64853]